fUSD/lending_fUSD_20240903
["ID","MTS","AMOUNT","RATE_DAILY","PERIOD"]
[337062317,1725400307842,-1353.3,0.00013889,2]
[337062318,1725400307851,-1353.3,0.00013889,2]
[337062319,1725400307860,-1353.3,0.00013889,2]
[337062320,1725400307869,-1353.3,0.00013889,2]
[337062321,1725400307880,-1353.3,0.00013889,2]
[337062322,1725400307889,-1353.3,0.00013889,2]
[337062323,1725400307898,-1353.3,0.00013889,2]
[337062324,1725400307907,-1353.3,0.00013889,2]
[337062325,1725400307918,-1353.53430059,0.00013889,2]
[337062326,1725400307927,-2725.67,0.00013889,2]
[337062327,1725400307937,-2725.67,0.00013889,2]
[337062328,1725400307947,-2725.67,0.00013889,2]
[337062329,1725400307956,-2725.67,0.00013889,2]
[337062330,1725400307966,-2725.67,0.00013889,2]
[337062331,1725400307976,-2725.67,0.00013889,2]
[337062332,1725400307986,-2725.67,0.00013889,2]
[337062333,1725400307998,-2725.67,0.00013889,2]
[337062334,1725400308007,-2725.67,0.00013889,2]
[337062335,1725400308016,-2725.67,0.00013889,2]
[337062336,1725400308025,-2725.67,0.00013889,2]
[337062337,1725400308034,-2725.79435545,0.00013889,2]
[337062338,1725400308043,-5233.57,0.00013889,2]
[337062339,1725400308052,-5233.57,0.00013889,2]
[337062340,1725400308062,-5233.57,0.00013889,2]
[337062341,1725400308071,-5233.57,0.00013889,2]
[337062342,1725400308080,-5233.57,0.00013889,2]
[337062343,1725400308090,-5233.57,0.00013889,2]
[337062344,1725400308099,-4828.0374999,0.00013889,2]
[337062345,1725400308108,-5233.57,0.00013889,2]
[337062346,1725400308118,-5233.57,0.00013889,2]
[337062347,1725400308127,-5233.57,0.00013889,2]
[337062348,1725400308137,-5233.57,0.00013889,2]
[337062349,1725400308147,-5233.57,0.00013889,2]
[337062350,1725400308156,-5233.59132106,0.00013889,2]
[337062351,1725400308166,-500.0,0.00013889,2]
[337062352,1725400308175,-500.0,0.00013889,2]
[337062353,1725400308185,-500.0,0.00013889,2]
[337062354,1725400308194,-500.0,0.00013889,2]
[337062355,1725400308203,-500.0,0.00013889,2]
[337062356,1725400308213,-500.0,0.00013889,2]
[337062357,1725400308222,-380.93995994,0.00013889,2]
[337062358,1725400308232,-1969.53,0.00013889,2]
[337062359,1725400308241,-1969.53,0.00013889,2]
[337062360,1725400308251,-1969.53,0.00013889,2]
[337062361,1725400308261,-1969.53,0.00013889,2]
[337062362,1725400308270,-1969.53,0.00013889,2]
[337062363,1725400308280,-1969.53,0.00013889,2]
[337062364,1725400308289,-1969.53,0.00013889,2]
[337062365,1725400308299,-1969.53,0.00013889,2]
[337062366,1725400308308,-1969.53,0.00013889,2]
[337062367,1725400308317,-655.24,0.00013889,2]
[337062368,1725400308326,-1969.53,0.00013889,2]
[337062369,1725400308335,-655.24,0.00013889,2]
[337062370,1725400308344,-1969.53,0.00013889,2]
[337062371,1725400308353,-655.24,0.00013889,2]
[337062372,1725400308362,-1969.58541961,0.00013889,2]
[337062373,1725400308371,-655.24,0.00013889,2]
[337062374,1725400308380,-655.24,0.00013889,2]
[337062375,1725400308389,-655.24,0.00013889,2]
[337062376,1725400308398,-655.24,0.00013889,2]
[337062377,1725400308407,-655.24,0.00013889,2]
[337062378,1725400308416,-500.0,0.00013889,2]
[337062379,1725400308425,-655.24,0.00013889,2]
[337062380,1725400308435,-500.0,0.00013889,2]
[337062381,1725400308444,-655.24,0.00013889,2]
[337062382,1725400308453,-500.0,0.00013889,2]
[337062383,1725400308463,-500.0,0.00013889,2]
[337062384,1725400308472,-655.24,0.00013889,2]
[337062385,1725400308481,-500.0,0.00013889,2]
[337062386,1725400308491,-655.34551421,0.00013889,2]
[337062387,1725400308500,-500.0,0.00013889,2]
[337062388,1725400308509,-500.0,0.00013889,2]
[337062389,1725400308518,-500.0,0.00013889,2]
[337062390,1725400308527,-500.0,0.00013889,2]
[337062391,1725400308536,-500.0,0.00013889,2]
[337062392,1725400308546,-389.61020735,0.00013889,2]
[337062393,1725400308555,-2189.75,0.00013889,2]
[337062394,1725400308564,-2189.75,0.00013889,2]
[337062395,1725400308573,-2189.75,0.00013889,2]
[337062396,1725400308582,-2189.75,0.00013889,2]
[337062397,1725400308591,-500.0,0.00013889,2]
[337062398,1725400308601,-2189.75,0.00013889,2]
[337062399,1725400308610,-500.0,0.00013889,2]
[337062400,1725400308620,-2189.75,0.00013889,2]
[337062401,1725400308629,-500.0,0.00013889,2]
[337062402,1725400308638,-2189.75,0.00013889,2]
[337062403,1725400308649,-500.0,0.00013889,2]
[337062404,1725400308658,-2189.75,0.00013889,2]
[337062405,1725400308668,-500.0,0.00013889,2]
[337062406,1725400308677,-2189.75,0.00013889,2]
[337062407,1725400308687,-500.0,0.00013889,2]
[337062408,1725400308696,-2189.75,0.00013889,2]
[337062409,1725400308706,-500.0,0.00013889,2]
[337062410,1725400308715,-2189.75,0.00013889,2]
[337062411,1725400308724,-2189.91525516,0.00013889,2]
[337062412,1725400308737,-500.0,0.00013889,2]
[337062413,1725400308747,-500.0,0.00013889,2]
[337062414,1725400308756,-500.0,0.00013889,2]
[337062415,1725400308766,-500.0,0.00013889,2]
[337062416,1725400308776,-206.42295683,0.00013889,2]
[337062417,1725400308786,-971.98,0.00013889,2]
[337062418,1725400308795,-971.98,0.00013889,2]
[337062419,1725400308806,-971.98,0.00013889,2]
[337062420,1725400308816,-971.98,0.00013889,2]
[337062421,1725400308825,-4849.7574999,0.00013889,2]
[337062422,1725400308834,-971.98,0.00013889,2]
[337062423,1725400308843,-971.98,0.00013889,2]
[337062424,1725400308852,-971.98,0.00013889,2]
[337062425,1725400308861,-971.98,0.00013889,2]
[337062426,1725400308871,-971.98,0.00013889,2]
[337062427,1725400308880,-971.98,0.00013889,2]
[337062428,1725400308890,-971.98,0.00013889,2]
[337062429,1725400308899,-972.19904624,0.00013889,2]
[337062430,1725400308909,-2710.93,0.00013889,2]
[337062431,1725400308920,-2710.93,0.00013889,2]
[337062432,1725400308929,-2710.93,0.00013889,2]
[337062433,1725400308939,-2710.93,0.00013889,2]
[337062434,1725400308949,-2710.93,0.00013889,2]
[337062435,1725400308958,-2710.93,0.00013889,2]
[337062436,1725400308967,-2710.93,0.00013889,2]
[337062437,1725400308976,-1978.98,0.00013889,2]
[337062438,1725400308986,-2710.93,0.00013889,2]
[337062439,1725400308995,-1978.98,0.00013889,2]
[337062440,1725400309003,-2710.93,0.00013889,2]
[337062441,1725400309013,-1978.98,0.00013889,2]
[337062442,1725400309022,-2710.93,0.00013889,2]
[337062443,1725400309031,-1978.98,0.00013889,2]
[337062444,1725400309040,-2710.93,0.00013889,2]
[337062445,1725400309050,-1978.98,0.00013889,2]
[337062446,1725400309059,-2711.07119342,0.00013889,2]
[337062447,1725400309220,-1978.98,0.00013889,2]
[337062448,1725400309231,-1978.98,0.00013889,2]
[337062449,1725400309240,-1978.98,0.00013889,2]
[337062450,1725400309250,-1978.98,0.00013889,2]
[337062451,1725400309260,-1978.98,0.00013889,2]
[337062452,1725400309269,-1978.98,0.00013889,2]
[337062453,1725400309279,-1978.98401264,0.00013889,2]
[337062454,1725400309289,-1064.69,0.00013889,2]
[337062455,1725400309298,-1064.69,0.00013889,2]
[337062456,1725400309307,-1064.69,0.00013889,2]
[337062457,1725400309317,-1064.69,0.00013889,2]
[337062458,1725400309326,-1064.69,0.00013889,2]
[337062459,1725400309336,-1064.69,0.00013889,2]
[337062460,1725400309346,-1064.69,0.00013889,2]
[337062461,1725400309355,-1064.69,0.00013889,2]
[337062462,1725400309364,-1064.69,0.00013889,2]
[337062463,1725400309373,-1064.69,0.00013889,2]
[337062464,1725400309383,-1064.69,0.00013889,2]
[337062465,1725400309392,-1064.77438963,0.00013889,2]
[337062466,1725400309401,-2583.0385151,0.00013889,2]
[337062467,1725400309410,-607.08,0.00013889,2]
[337062468,1725400309420,-607.08,0.00013889,2]
[337062469,1725400309429,-607.08,0.00013889,2]
[337062470,1725400309439,-607.08,0.00013889,2]
[337062471,1725400309448,-607.08,0.00013889,2]
[337062472,1725400309457,-607.08,0.00013889,2]
[337062473,1725400309466,-607.08,0.00013889,2]
[337062474,1725400309476,-607.08,0.00013889,2]
[337062475,1725400309485,-607.08,0.00013889,2]
[337062476,1725400309496,-607.08,0.00013889,2]
[337062477,1725400309505,-607.08,0.00013889,2]
[337062478,1725400309514,-607.15637698,0.00013889,2]
[337062479,1725400309523,-545.71,0.00013889,2]
[337062480,1725400309533,-545.71,0.00013889,2]
[337062481,1725400309542,-4297.84,0.00013889,2]
[337062482,1725400309552,-545.71,0.00013889,2]
[337062483,1725400309561,-4297.84,0.00013889,2]
[337062484,1725400309571,-545.71,0.00013889,2]
[337062485,1725400309580,-545.71,0.00013889,2]
[337062486,1725400309589,-4297.84,0.00013889,2]
[337062487,1725400309599,-545.71,0.00013889,2]
[337062488,1725400309608,-4297.84,0.00013889,2]
[337062489,1725400309617,-545.71,0.00013889,2]
[337062490,1725400309626,-4297.84,0.00013889,2]
[337062491,1725400309635,-545.71,0.00013889,2]
[337062492,1725400309644,-4297.84,0.00013889,2]
[337062493,1725400309653,-545.71,0.00013889,2]
[337062494,1725400309664,-4297.84,0.00013889,2]
[337062495,1725400309673,-545.71,0.00013889,2]
[337062496,1725400309682,-4297.84,0.00013889,2]
[337062497,1725400309691,-545.71,0.00013889,2]
[337062498,1725400309701,-4297.84,0.00013889,2]
[337062499,1725400309711,-4297.84,0.00013889,2]
[337062500,1725400309720,-545.82090026,0.00013889,2]
[337062501,1725400309730,-4297.84,0.00013889,2]
[337062502,1725400309741,-4297.9495295,0.00013889,2]
[337062503,1725400309750,-3268.74,0.00013889,2]
[337062504,1725400309759,-3268.74,0.00013889,2]
[337062505,1725400309770,-3268.74,0.00013889,2]
[337062506,1725400309779,-3268.74,0.00013889,2]
[337062507,1725400309788,-3268.74,0.00013889,2]
[337062508,1725400309800,-3268.74,0.00013889,2]
[337062509,1725400309811,-735.41,0.00013889,2]
[337062510,1725400309821,-3268.74,0.00013889,2]
[337062511,1725400309831,-735.41,0.00013889,2]
[337062512,1725400309840,-3268.74,0.00013889,2]
[337062513,1725400309850,-3268.74,0.00013889,2]
[337062514,1725400309860,-735.41,0.00013889,2]
[337062515,1725400309870,-3268.74,0.00013889,2]
[337062516,1725400309879,-735.41,0.00013889,2]
[337062517,1725400309889,-3268.74,0.00013889,2]
[337062518,1725400309898,-735.41,0.00013889,2]
[337062519,1725400309908,-3268.77527203,0.00013889,2]
[337062520,1725400309921,-735.41,0.00013889,2]
[337062521,1725400309930,-735.41,0.00013889,2]
[337062522,1725400309939,-735.41,0.00013889,2]
[337062523,1725400309950,-735.41,0.00013889,2]
[337062524,1725400309959,-735.41,0.00013889,2]
[337062525,1725400309969,-735.41,0.00013889,2]
[337062526,1725400309979,-735.57975396,0.00013889,2]
[337062527,1725400309988,-500.0,0.00013889,2]
[337062528,1725400309998,-4849.7574999,0.00013889,2]
[337062529,1725400310007,-500.0,0.00013889,2]
[337062530,1725400310016,-500.0,0.00013889,2]
[337062531,1725400310026,-500.0,0.00013889,2]
[337062532,1725400310035,-500.0,0.00013889,2]
[337062533,1725400310045,-500.0,0.00013889,2]
[337062534,1725400310054,-500.0,0.00013889,2]
[337062535,1725400310064,-500.0,0.00013889,2]
[337062536,1725400310074,-500.0,0.00013889,2]
[337062537,1725400310084,-394.27081593,0.00013889,2]
[337062538,1725400310094,-550.99,0.00013889,2]
[337062539,1725400310104,-550.99,0.00013889,2]
[337062540,1725400310114,-550.99,0.00013889,2]
[337062541,1725400310123,-550.99,0.00013889,2]
[337062542,1725400310133,-550.99,0.00013889,2]
[337062543,1725400310142,-550.99,0.00013889,2]
[337062544,1725400310151,-550.99,0.00013889,2]
[337062545,1725400310161,-550.99,0.00013889,2]
[337062546,1725400310171,-752.03,0.00013889,2]
[337062547,1725400310180,-550.99,0.00013889,2]
[337062548,1725400310190,-550.99,0.00013889,2]
[337062549,1725400310199,-550.99,0.00013889,2]
[337062550,1725400310209,-752.03,0.00013889,2]
[337062551,1725400310218,-551.21457156,0.00013889,2]
[337062552,1725400310227,-752.03,0.00013889,2]
[337062553,1725400310237,-752.03,0.00013889,2]
[337062554,1725400310246,-752.03,0.00013889,2]
[337062555,1725400310256,-752.03,0.00013889,2]
[337062556,1725400310265,-752.03,0.00013889,2]
[337062557,1725400310275,-752.03,0.00013889,2]
[337062558,1725400310283,-752.03,0.00013889,2]
[337062559,1725400310293,-752.03,0.00013889,2]
[337062560,1725400310303,-752.03,0.00013889,2]
[337062561,1725400310312,-752.23809857,0.00013889,2]
[337062562,1725400310321,-1846.76,0.00013889,2]
[337062563,1725400310331,-1846.76,0.00013889,2]
[337062564,1725400310339,-1846.76,0.00013889,2]
[337062565,1725400310350,-1846.76,0.00013889,2]
[337062566,1725400310359,-1846.76,0.00013889,2]
[337062567,1725400310368,-1846.76,0.00013889,2]
[337062568,1725400310378,-1846.76,0.00013889,2]
[337062569,1725400310387,-1846.76,0.00013889,2]
[337062570,1725400310396,-1846.76,0.00013889,2]
[337062571,1725400310405,-1846.76,0.00013889,2]
[337062572,1725400310417,-1846.76,0.00013889,2]
[337062573,1725400310434,-1846.90938522,0.00013889,2]
[337062574,1725400310443,-500.0,0.00013889,2]
[337062575,1725400310452,-500.0,0.00013889,2]
[337062576,1725400310461,-242.57881961,0.00013889,2]
[337062577,1725400310470,-1000.0,0.0001389,2]
[337062578,1725400310479,-1000.0,0.0001389,2]
[337062579,1725400310488,-1000.0,0.0001389,2]
[337062580,1725400310497,-1000.0,0.0001389,2]
[337062581,1725400310506,-1000.0,0.0001389,2]
[337062582,1725400310515,-348.52160671,0.0001389,2]
[337062583,1725400310524,-1307.82,0.0001389,2]
[337062584,1725400310533,-1307.82,0.0001389,2]
[337062585,1725400310542,-1307.82,0.0001389,2]
[337062586,1725400310551,-1307.82,0.0001389,2]
[337062587,1725400310560,-1307.82,0.0001389,2]
[337062588,1725400310569,-1307.82,0.0001389,2]
[337062589,1725400310578,-1307.82,0.0001389,2]
[337062590,1725400310587,-1307.82,0.0001389,2]
[337062591,1725400310597,-1307.82,0.0001389,2]
[337062592,1725400310606,-1307.82,0.0001389,2]
[337062593,1725400310615,-1307.82,0.0001389,2]
[337062594,1725400310625,-1307.82,0.0001389,2]
[337062595,1725400310634,-1307.82,0.0001389,2]
[337062596,1725400310646,-1307.82,0.0001389,2]
[337062597,1725400310657,-1307.82,0.0001389,2]
[337062598,1725400310669,-1307.82,0.0001389,2]
[337062599,1725400310678,-1307.82,0.0001389,2]
[337062600,1725400310687,-1307.99106307,0.0001389,2]
[337062601,1725400310696,-1486.71,0.0001389,2]
[337062602,1725400310705,-1486.71,0.0001389,2]
[337062603,1725400310714,-1486.71,0.0001389,2]
[337062604,1725400310724,-1486.71,0.0001389,2]
[337062605,1725400310737,-1486.71,0.0001389,2]
[337062606,1725400310748,-1486.71,0.0001389,2]
[337062607,1725400310759,-1486.71,0.0001389,2]
[337062608,1725400310770,-1486.71,0.0001389,2]
[337062609,1725400310779,-1486.71,0.0001389,2]
[337062610,1725400310788,-1486.71,0.0001389,2]
[337062611,1725400310799,-1486.71,0.0001389,2]
[337062612,1725400310809,-1486.71,0.0001389,2]
[337062613,1725400310821,-1486.71,0.0001389,2]
[337062614,1725400310830,-1486.71,0.0001389,2]
[337062615,1725400310840,-1486.71,0.0001389,2]
[337062616,1725400310851,-1486.71,0.0001389,2]
[337062617,1725400310864,-1486.71,0.0001389,2]
[337062618,1725400310874,-1486.74434697,0.0001389,2]
[337062619,1725400310885,-500.0,0.0001389,2]
[337062620,1725400310895,-510.03211262,0.0001389,2]
[337062621,1725400310903,-427.82544943,0.0001389,2]
[337062622,1725400310913,-963.62,0.0001389,2]
[337062623,1725400310924,-963.62,0.0001389,2]
[337062624,1725400310933,-963.62,0.0001389,2]
[337062625,1725400310942,-963.62,0.0001389,2]
[337062626,1725400310952,-963.62,0.0001389,2]
[337062627,1725400310962,-963.62,0.0001389,2]
[337062628,1725400310972,-963.62,0.0001389,2]
[337062629,1725400310981,-963.62,0.0001389,2]
[337062630,1725400310991,-963.62,0.0001389,2]
[337062631,1725400311000,-963.62,0.0001389,2]
[337062632,1725400311009,-963.62,0.0001389,2]
[337062633,1725400311018,-963.62,0.0001389,2]
[337062634,1725400311027,-963.62,0.0001389,2]
[337062635,1725400311036,-963.62,0.0001389,2]
[337062636,1725400311046,-963.62,0.0001389,2]
[337062637,1725400311055,-963.62,0.0001389,2]
[337062638,1725400311064,-963.62,0.0001389,2]
[337062639,1725400311074,-963.74954988,0.0001389,2]
[337062640,1725400311083,-500.0,0.0001389,2]
[337062641,1725400311092,-500.0,0.0001389,2]
[337062642,1725400311102,-500.0,0.0001389,2]
[337062643,1725400311111,-500.0,0.0001389,2]
[337062644,1725400311122,-151.29646774,0.0001389,2]
[337062645,1725400311131,-2881.72,0.0001389,2]
[337062646,1725400311140,-2881.72,0.0001389,2]
[337062647,1725400311150,-2881.72,0.0001389,2]
[337062648,1725400311159,-2881.72,0.0001389,2]
[337062649,1725400311170,-2881.72,0.0001389,2]
[337062650,1725400311179,-2881.72,0.0001389,2]
[337062651,1725400311188,-2881.72,0.0001389,2]
[337062652,1725400311197,-2881.72,0.0001389,2]
[337062653,1725400311206,-2881.72,0.0001389,2]
[337062654,1725400311216,-2881.72,0.0001389,2]
[337062655,1725400311225,-2881.72,0.0001389,2]
[337062656,1725400311234,-2881.72,0.0001389,2]
[337062657,1725400311244,-2881.72,0.0001389,2]
[337062658,1725400311253,-2881.72,0.0001389,2]
[337062659,1725400311262,-2881.72,0.0001389,2]
[337062660,1725400311271,-2881.72,0.0001389,2]
[337062661,1725400311280,-2881.72,0.0001389,2]
[337062662,1725400311290,-2881.94581433,0.0001389,2]
[337062663,1725400311299,-500.0,0.0001389,2]
[337062664,1725400311308,-500.0,0.0001389,2]
[337062665,1725400311317,-500.0,0.0001389,2]
[337062666,1725400311326,-500.0,0.0001389,2]
[337062667,1725400311335,-500.0,0.0001389,2]
[337062668,1725400311344,-500.0,0.0001389,2]
[337062669,1725400311353,-175.67635277,0.0001389,2]
[337062670,1725400311362,-500.0,0.0001389,2]
[337062671,1725400311371,-500.0,0.0001389,2]
[337062672,1725400311381,-500.0,0.0001389,2]
[337062673,1725400311390,-500.0,0.0001389,2]
[337062674,1725400311399,-500.0,0.0001389,2]
[337062675,1725400311407,-500.0,0.0001389,2]
[337062676,1725400311417,-500.0,0.0001389,2]
[337062677,1725400311426,-500.0,0.0001389,2]
[337062678,1725400311435,-500.0,0.0001389,2]
[337062679,1725400311584,-500.0,0.0001389,2]
[337062680,1725400311593,-500.0,0.0001389,2]
[337062681,1725400311603,-500.0,0.0001389,2]
[337062682,1725400311611,-500.0,0.0001389,2]
[337062683,1725400311620,-500.0,0.0001389,2]
[337062684,1725400311629,-196.19449966,0.0001389,2]
[337062685,1725400311639,-1014.0,0.00013897,2]
[337062686,1725400311648,-500.0,0.00013899,2]
[337062687,1725400311657,-500.0,0.00013899,2]
[337062688,1725400311667,-500.0,0.00013899,2]
[337062689,1725400311676,-500.0,0.00013899,2]
[337062690,1725400311685,-578.0,0.00013899,2]
[337062691,1725400311694,-622502.62836049,0.000139,3]
[337062692,1725400311703,-150.0,0.000139,2]
[337062693,1725400311712,-226.0,0.000139,2]
[337062694,1725400311722,-1928.4685,0.000139,2]
[337062695,1725400311735,-358.0,0.000139,2]
[337062696,1725400311746,-3052.5174,0.000139,2]
[337062697,1725400311757,-1000.0,0.000139,2]
[337062698,1725400311767,-3754.3274,0.000139,2]
[337062699,1725400311778,-447.0,0.00013926,2]
[337062700,1725400311787,-1259.0,0.00013926,2]
[337062701,1725400311797,-1545.0,0.00013926,2]
[337062702,1725400311808,-624.0,0.00013926,2]
[337062703,1725400311818,-933.647,0.00013926,2]
[337062704,1725400311827,-557.0,0.00013926,2]
[337062705,1725400311837,-810.0,0.00013926,2]
[337062706,1725400311847,-150.0,0.00013926,2]
[337062707,1725400311857,-1899.0,0.00013926,2]
[337062708,1725400311868,-552.0,0.00013926,2]
[337062709,1725400311878,-251.843,0.00013926,2]
[337062710,1725400311888,-805.0,0.00013926,2]
[337062711,1725400311898,-1149.0,0.00013926,2]
[337062712,1725400311911,-3340.0,0.00013926,2]
[337062713,1725400311921,-1921.0,0.00013926,2]
[337062714,1725400311931,-3064.9,0.00013926,2]
[337062715,1725400311940,-5852.0,0.00013926,2]
[337062716,1725400311950,-159.02,0.00013926,2]
[337062717,1725400311961,-150.0,0.00013926,2]
[337062718,1725400311971,-13465.0,0.00013926,2]
[337062719,1725400311980,-1144.0,0.00013926,2]
[337062720,1725400311989,-252.866,0.00013926,2]
[337062721,1725400311999,-2000.0,0.00013929,2]
[337062722,1725400312010,-234.0,0.0001396,2]
[337062723,1725400312020,-172.18570277,0.00013993,2]
[337062724,1725400312029,-200.0,0.00013999,2]
[337062725,1725400312039,-150.0,0.00014,2]
[337062726,1725400312049,-509.210048,0.00014,2]
[337062727,1725400312058,-508.5222,0.0001401,2]
[337062728,1725400312068,-1100.69782956,0.00014025,2]
[337062729,1725400312078,-150.0,0.00014034,2]
[337062730,1725400312087,-261.857,0.00014034,2]
[337062731,1725400312096,-187.686,0.00014034,2]
[337062732,1725400312105,-234.0,0.0001415,2]
[337062733,1725400312115,-1100.69782956,0.00014171,2]
[337062734,1725400312124,-167.570683,0.00014181,2]
[337062735,1725400312133,-167.570683,0.00014181,2]
[337062736,1725400312142,-167.570683,0.00014181,2]
[337062737,1725400312152,-210.922635,0.00014181,2]
[337062738,1725400312162,-150.0,0.00014186,2]
[337062739,1725400312171,-153.86292,0.00014186,2]
[337062740,1725400312180,-317.86984741,0.00014249,2]
[337062741,1725400312190,-172.18570277,0.00014296,2]
[337062742,1725400312199,-182.584374,0.00014296,2]
[337062743,1725400312208,-1928.4685,0.000143,2]
[337062744,1725400312217,-3052.5174,0.000143,2]
[337062745,1725400312226,-1271.47,0.000143,2]
[337062746,1725400312236,-3754.3274,0.000143,2]
[337062747,1725400312245,-180.0,0.00014309,2]
[337062748,1725400312254,-1100.69782956,0.00014317,2]
[337062749,1725400312263,-254.33,0.00014319,2]
[337062750,1725400312272,-1000.0,0.00014321,2]
[337062751,1725400312281,-1000.0,0.00014321,2]
[337062752,1725400312291,-234.0,0.0001433,2]
[337062753,1725400312300,-500.0,0.00014334,2]
[337062754,1725400312309,-324.41919555,0.00014334,2]
[337062755,1725400312318,-500.0,0.00014334,2]
[337062756,1725400312327,-500.0,0.00014334,2]
[337062757,1725400312336,-500.0,0.00014334,2]
[337062758,1725400312345,-500.0,0.00014334,2]
[337062759,1725400312354,-500.0,0.00014334,2]
[337062760,1725400312363,-500.0,0.00014335,2]
[337062761,1725400312372,-500.0,0.00014335,2]
[337062762,1725400312381,-500.0,0.00014335,2]
[337062763,1725400312390,-500.0,0.00014335,2]
[337062764,1725400312399,-500.0,0.00014335,2]
[337062765,1725400312407,-500.0,0.00014335,2]
[337062766,1725400312416,-500.0,0.00014335,2]
[337062767,1725400312425,-500.0,0.00014335,2]
[337062768,1725400312434,-500.0,0.00014335,2]
[337062769,1725400312443,-500.0,0.00014335,2]
[337062770,1725400312452,-500.0,0.00014335,2]
[337062771,1725400312461,-500.0,0.00014335,2]
[337062772,1725400312470,-500.0,0.00014335,2]
[337062773,1725400312479,-500.0,0.00014335,2]
[337062774,1725400312489,-500.0,0.00014335,2]
[337062775,1725400312498,-500.0,0.00014335,2]
[337062776,1725400312507,-500.0,0.00014335,2]
[337062777,1725400312516,-500.0,0.00014336,2]
[337062778,1725400312525,-500.0,0.00014336,2]
[337062779,1725400312536,-219.3515305,0.00014338,2]
[337062780,1725400312546,-1641.84989305,0.00014338,2]
[337062781,1725400312555,-200.0,0.00014342,2]
[337062782,1725400312564,-210.922635,0.00014358,2]
[337062783,1725400312574,-182.08,0.00014399,2]
[337062784,1725400312584,-250.0,0.00014421,2]
[337062785,1725400312597,-1000.0,0.00014437,2]
[337062786,1725400312616,-1014.0,0.00014445,2]
[337062787,1725400312631,-120515.3310401,0.00014449,2]
[337062788,1725400312648,-1100.69782956,0.00014463,2]
[337062789,1725400312666,-1000.0,0.000145,4]
[337062790,1725400312683,-795.0,0.00014502,2]
[337062791,1725400312700,-234.0,0.0001452,2]
[337062792,1725400312717,-167.570683,0.00014535,2]
[337062793,1725400312732,-210.922635,0.00014535,2]
[337062794,1725400312749,-765.78993468,0.0001455,2]
[337062795,1725400312767,-317.86984741,0.00014575,2]
[337062796,1725400312784,-420.0,0.00014588,2]
[337062797,1725400312796,-172.18570277,0.00014598,2]
[337062798,1725400312815,-1000.0,0.000146,4]
[337062799,1725400312831,-1100.69782956,0.00014608,2]
[337062800,1725400312846,-243164.0,0.00014673,2]
[337062801,1725400312860,-1501.13,0.000147,2]
[337062802,1725400312875,-15408.72,0.000147,2]
[337062803,1725400312889,-234.0,0.000147,2]
[337062804,1725400312904,-210.922635,0.00014713,2]
[337062805,1725400312918,-210.0,0.0001473,2]
[337062806,1725400312933,-1100.69782956,0.00014754,2]
[337062807,1725400312948,-330.88969067,0.0001478,2]
[337062808,1725400312963,-4243.72369938,0.000148,2]
[337062809,1725400312979,-600.0,0.000148,2]
[337062810,1725400312993,-255.0,0.00014809,2]
[337062811,1725400313008,-700.0,0.00014885,2]
[337062812,1725400313022,-210.922635,0.0001489,2]
[337062813,1725400313038,-201.0,0.0001489,2]
[337062814,1725400313051,-234.0,0.0001489,2]
[337062815,1725400313066,-219.3515305,0.0001489,2]
[337062816,1725400313081,-1641.84989305,0.0001489,2]